fUSD/lending_fUSD_20240121
["ID","MTS","AMOUNT","RATE_DAILY","PERIOD"]
[312440770,1705876454011,-596.28,0.00042191,31]
[312440771,1705876454039,-791.81,0.00042191,31]
[312440772,1705876454068,-9012.61,0.00042191,31]
[312440773,1705876454094,-217.45,0.00042191,31]
[312440774,1705876454120,-1020.43,0.00042191,31]
[312440775,1705876454146,-730.33,0.00042191,31]
[312440776,1705876454173,-500.0,0.00042191,31]
[312440777,1705876454199,-500.0,0.00042191,31]
[312440778,1705876454225,-500.0,0.00042191,31]
[312440779,1705876454252,-500.0,0.00042191,31]
[312440780,1705876454280,-856.84,0.00042191,31]
[312440781,1705876454307,-1622.37,0.00042191,31]
[312440782,1705876454333,-500.0,0.00042191,31]
[312440783,1705876454360,-10562.0,0.00042191,31]
[312440784,1705876454387,-11680.93,0.00042191,31]
[312440785,1705876454414,-3548.3,0.00042191,31]
[312440786,1705876454441,-735.19,0.00042191,31]
[312440787,1705876454467,-500.0,0.00042191,31]
[312440788,1705876454493,-7532.62,0.00042191,31]
[312440789,1705876454519,-500.0,0.00042191,31]
[312440790,1705876454546,-500.0,0.00042191,31]
[312440791,1705876454571,-2377.26,0.00042191,31]
[312440792,1705876454596,-871.97,0.00042191,31]
[312440793,1705876454623,-766.87,0.00042191,31]
[312440794,1705876454648,-500.0,0.00042191,31]
[312440795,1705876454675,-500.0,0.00042191,31]
[312440796,1705876454701,-500.0,0.00042191,31]
[312440797,1705876454727,-8526.19,0.00042191,31]
[312440798,1705876454754,-500.0,0.00042191,31]
[312440799,1705876454780,-1112.8,0.00042191,31]
[312440800,1705876454806,-1755.43,0.00042191,31]
[312440801,1705876454831,-641.2,0.00042191,31]
[312440802,1705876455193,-881.88,0.00042191,31]
[312440803,1705876455222,-1038.39,0.00042191,31]
[312440804,1705876455250,-500.0,0.00042191,31]
[312440805,1705876455278,-647.93,0.00042191,31]
[312440806,1705876455307,-4098.91,0.00042191,31]
[312440807,1705876455337,-666.36,0.00042191,31]
[312440808,1705876455365,-4639.17,0.00042191,31]
[312440809,1705876455392,-3856.7,0.00042191,31]
[312440810,1705876455419,-673.21,0.00042191,31]
[312440811,1705876455446,-1892.19,0.00042191,31]
[312440812,1705876455474,-3298.95,0.00042191,31]
[312440813,1705876455501,-500.0,0.00042191,31]
[312440814,1705876455528,-500.0,0.00042191,31]
[312440815,1705876455554,-992.34,0.00042191,31]
[312440816,1705876455582,-2034.53,0.00042191,31]
[312440817,1705876455610,-500.0,0.00042191,31]
[312440818,1705876455638,-660.28,0.00042191,31]
[312440819,1705876455665,-500.0,0.00042191,31]
[312440820,1705876455691,-500.0,0.00042191,31]
[312440821,1705876455719,-500.0,0.00042191,31]
[312440822,1705876455746,-28036.98,0.00042191,31]
[312440823,1705876455774,-1938.75,0.00042191,31]
[312440824,1705876455801,-500.0,0.00042191,31]
[312440825,1705876455833,-549.75,0.00042191,31]
[312440826,1705876455861,-1185.61,0.00042191,31]
[312440827,1705876455888,-903.34,0.00042191,31]
[312440828,1705876455915,-500.0,0.00042191,31]
[312440829,1705876455942,-3123.65,0.00042191,31]
[312440830,1705876455969,-1216.46,0.00042191,31]
[312440831,1705876455999,-1029.32,0.00042191,31]
[312440832,1705876456026,-1296.81,0.00042191,31]
[312440833,1705876456055,-500.0,0.00042191,31]
[312440834,1705876456083,-686.97,0.00042191,31]
[312440835,1705876456111,-2125.13,0.00042191,31]
[312440836,1705876456139,-1186.92,0.00042191,31]
[312440837,1705876456167,-2234.56,0.00042191,31]
[312440838,1705876456194,-1017.01,0.00042191,31]
[312440839,1705876456222,-1214.61,0.00042191,31]
[312440840,1705876456248,-500.0,0.00042191,31]
[312440841,1705876456276,-550.46,0.00042191,31]
[312440842,1705876456305,-500.0,0.00042191,31]
[312440843,1705876456332,-980.04,0.00042191,31]
[312440844,1705876456359,-764.47,0.00042191,31]
[312440845,1705876456388,-500.0,0.00042191,31]
[312440846,1705876456416,-2635.33,0.00042191,31]
[312440847,1705876456443,-692.17,0.00042191,31]
[312440848,1705876456471,-500.0,0.00042191,31]
[312440849,1705876456498,-500.0,0.00042191,31]
[312440850,1705876456525,-589.26,0.00042191,31]
[312440851,1705876456553,-500.0,0.00042191,31]
[312440852,1705876456581,-4050.53,0.00042191,31]
[312440853,1705876456611,-790.3,0.00042191,31]
[312440854,1705876456638,-1409.68,0.00042191,31]
[312440855,1705876456665,-884.87,0.00042191,31]
[312440856,1705876456692,-500.0,0.00042191,31]
[312440857,1705876456719,-538.05,0.00042191,31]
[312440858,1705876456747,-500.0,0.00042191,31]
[312440859,1705876456776,-8615.3,0.00042191,31]
[312440860,1705876456805,-1164.14,0.00042191,31]
[312440861,1705876456833,-650.65,0.00042191,31]
[312440862,1705876456860,-509.39,0.00042191,31]
[312440863,1705876456888,-7351.47,0.00042191,31]
[312440864,1705876456915,-500.39,0.00042191,31]
[312440865,1705876456944,-1317.68,0.00042191,31]
[312440866,1705876456971,-500.0,0.00042191,31]
[312440867,1705876457002,-500.0,0.00042191,31]
[312440868,1705876457030,-773.48,0.00042191,31]
[312440869,1705876457058,-500.0,0.00042191,31]
[312440870,1705876457085,-500.0,0.00042191,31]
[312440871,1705876457114,-500.0,0.00042191,31]
[312440872,1705876457141,-500.0,0.00042191,31]
[312440873,1705876457241,-687.04,0.00042191,31]
[312440874,1705876457270,-2437.34,0.00042191,31]
[312440875,1705876457297,-500.0,0.00042191,31]
[312440876,1705876457325,-2353.8,0.00042191,31]
[312440877,1705876457351,-500.0,0.00042191,31]
[312440878,1705876457378,-2671.1,0.00042191,31]
[312440879,1705876457405,-500.0,0.00042191,31]
[312440880,1705876457432,-1627.9,0.00042191,31]
[312440881,1705876457458,-500.0,0.00042191,31]
[312440882,1705876457489,-701.03,0.00042191,31]
[312440883,1705876457515,-744.64,0.00042191,31]
[312440884,1705876457545,-722.25,0.00042191,31]
[312440885,1705876457573,-1057.32,0.00042191,31]
[312440886,1705876457599,-157.099218,0.00042191,31]
[312440887,1705876457626,-500.0,0.00042191,31]
[312440888,1705876457653,-2605.29,0.00042191,31]
[312440889,1705876457679,-500.0,0.00042191,31]
[312440890,1705876457705,-500.0,0.00042191,31]
[312440891,1705876457732,-1869.91,0.00042191,31]
[312440892,1705876457760,-628.07,0.00042191,31]
[312440893,1705876457787,-853.42,0.00042191,31]
[312440894,1705876457814,-500.0,0.00042191,31]
[312440895,1705876457839,-500.0,0.00042191,31]
[312440896,1705876457865,-1463.45,0.00042191,31]
[312440897,1705876457890,-500.0,0.00042191,31]
[312440898,1705876457916,-738.08,0.00042191,31]
[312440899,1705876457942,-1856.37,0.00042191,31]
[312440900,1705876457969,-2717.95,0.00042191,31]
[312440901,1705876458000,-500.0,0.00042191,31]
[312440902,1705876458028,-500.0,0.00042191,31]
[312440903,1705876458059,-282.22,0.00042191,31]
[312440904,1705876458086,-3818.85,0.00042191,31]
[312440905,1705876458111,-671.9,0.00042191,31]
[312440906,1705876458138,-500.0,0.00042191,31]
[312440907,1705876458163,-576.78,0.00042191,31]
[312440908,1705876458190,-685.5,0.00042191,31]
[312440909,1705876458217,-1834.73,0.00042191,31]
[312440910,1705876458244,-500.0,0.00042191,31]
[312440911,1705876458270,-801.69,0.00042191,31]
[312440912,1705876458297,-782.28,0.00042191,31]
[312440913,1705876458326,-7874.08,0.00042191,31]
[312440914,1705876458354,-508.28,0.00042191,31]
[312440915,1705876458382,-1665.66,0.00042191,31]
[312440916,1705876458409,-1435.39,0.00042191,31]
[312440917,1705876458453,-500.0,0.00042191,31]
[312440918,1705876458482,-500.0,0.00042191,31]
[312440919,1705876458509,-3052.12,0.00042191,31]
[312440920,1705876458536,-1653.87,0.00042191,31]
[312440921,1705876458563,-500.0,0.00042191,31]
[312440922,1705876458590,-1882.97,0.00042191,31]
[312440923,1705876458617,-670.83,0.00042191,31]
[312440924,1705876458644,-500.0,0.00042191,31]
[312440925,1705876458670,-794.26,0.00042191,31]
[312440926,1705876458696,-500.0,0.00042191,31]
[312440927,1705876458721,-500.0,0.00042191,31]
[312440928,1705876458748,-705.2,0.00042191,31]
[312440929,1705876458776,-782.76,0.00042191,31]
[312440930,1705876458803,-500.0,0.00042191,31]
[312440931,1705876458830,-500.0,0.00042191,31]
[312440932,1705876458857,-711.05,0.00042191,31]
[312440933,1705876458883,-500.0,0.00042191,31]
[312440934,1705876458910,-500.0,0.00042191,31]
[312440935,1705876458937,-1594.26,0.00042191,31]
[312440936,1705876458964,-3948.71,0.00042191,31]
[312440937,1705876458992,-1147.94,0.00042191,31]
[312440938,1705876459018,-500.0,0.00042191,31]
[312440939,1705876459045,-500.0,0.00042191,31]
[312440940,1705876459073,-500.0,0.00042191,31]
[312440941,1705876459100,-539.12622699,0.00042191,31]
[312440942,1705876459127,-2451.0,0.000427,92]
[312440943,1705876459154,-500.0,0.00042739,31]
[312440944,1705876459179,-500.0,0.00042739,31]
[312440945,1705876459206,-500.0,0.00042739,31]
[312440946,1705876459233,-500.0,0.00042739,31]
[312440947,1705876459262,-500.0,0.00042739,31]
[312440948,1705876459290,-500.0,0.00042739,31]
[312440949,1705876459317,-500.0,0.00042739,31]
[312440950,1705876459345,-500.0,0.00042739,31]
[312440951,1705876459371,-500.0,0.00042739,31]
[312440952,1705876459399,-500.0,0.00042739,31]
[312440953,1705876459426,-500.0,0.00042739,31]
[312440954,1705876459453,-500.0,0.00042739,31]
[312440955,1705876459483,-500.0,0.00042739,31]
[312440956,1705876459517,-573.41,0.00042739,31]
[312440957,1705876459545,-500.0,0.00042739,31]
[312440958,1705876459574,-500.0,0.00042739,31]
[312440959,1705876459602,-500.0,0.00042739,31]
[312440960,1705876459634,-500.0,0.00042739,31]
[312440961,1705876459663,-500.0,0.00042739,31]
[312440962,1705876459694,-508.93499052,0.00042739,31]
[312440963,1705876459725,-500.0,0.00042739,31]
[312440964,1705876459753,-500.0,0.00042739,31]
[312440965,1705876459787,-500.0,0.00042739,31]
[312440966,1705876459816,-568.04,0.00042739,31]
[312440967,1705876459848,-500.0,0.00042739,31]
[312440968,1705876459878,-500.0,0.00042739,31]
[312440969,1705876459907,-380.27,0.00042739,31]
[312440970,1705876459936,-500.0,0.00042739,31]
[312440971,1705876459962,-500.0,0.00042739,31]
[312440972,1705876459993,-500.0,0.00042739,31]
[312440973,1705876460022,-500.0,0.00042739,31]
[312440974,1705876460051,-500.0,0.00042739,31]
[312440975,1705876460082,-523.93,0.00042739,31]
[312440976,1705876460111,-500.0,0.00042739,31]
[312440977,1705876460146,-500.0,0.00042739,31]
[312440978,1705876460386,-500.0,0.00042739,31]
[312440979,1705876460414,-500.0,0.00042739,31]
[312440980,1705876460442,-500.0,0.00042739,31]
[312440981,1705876460470,-500.0,0.00042739,31]
[312440982,1705876460499,-500.0,0.00042739,31]
[312440983,1705876460527,-500.0,0.00042739,31]
[312440984,1705876460556,-500.0,0.00042739,31]
[312440985,1705876460583,-500.0,0.00042739,31]
[312440986,1705876460612,-500.0,0.00042739,31]
[312440987,1705876460644,-500.0,0.00042739,31]
[312440988,1705876460672,-500.0,0.00042739,31]
[312440989,1705876460700,-516.25,0.00042739,31]
[312440990,1705876460728,-500.0,0.00042739,31]
[312440991,1705876460756,-579.47,0.00042739,31]
[312440992,1705876460784,-500.0,0.00042739,31]
[312440993,1705876460812,-500.0,0.00042739,31]
[312440994,1705876460857,-500.0,0.00042739,31]
[312440995,1705876460886,-500.0,0.00042739,31]
[312440996,1705876460915,-500.0,0.00042739,31]
[312440997,1705876460944,-500.0,0.00042739,31]
[312440998,1705876460973,-500.0,0.00042739,31]
[312440999,1705876461005,-391.65,0.00042739,31]
[312441000,1705876461033,-500.0,0.00042739,31]
[312441001,1705876461063,-382.1147462,0.00042739,31]
[312441002,1705876461090,-500.0,0.00042739,31]
[312441003,1705876461118,-500.0,0.00042739,31]
[312441004,1705876461145,-500.0,0.00042739,31]
[312441005,1705876461174,-500.0,0.00042739,31]
[312441006,1705876461202,-500.0,0.00042739,31]
[312441007,1705876461229,-500.0,0.00042739,31]
[312441008,1705876461263,-500.0,0.00042739,31]
[312441009,1705876461291,-631.72573009,0.00042739,31]
[312441010,1705876461320,-500.0,0.00042739,31]
[312441011,1705876461348,-500.0,0.00042739,31]
[312441012,1705876461376,-500.0,0.00042739,31]
[312441013,1705876461409,-348.64632416,0.00042739,31]
[312441014,1705876461437,-509.28,0.00042739,31]
[312441015,1705876461465,-500.0,0.00042739,31]
[312441016,1705876461494,-500.0,0.00042739,31]
[312441017,1705876461523,-500.0,0.00042739,31]
[312441018,1705876461552,-500.0,0.00042739,31]
[312441019,1705876461590,-500.0,0.00042739,31]
[312441020,1705876461618,-500.0,0.00042739,31]
[312441021,1705876461648,-500.0,0.00042739,31]
[312441022,1705876461676,-500.0,0.00042739,31]
[312441023,1705876461705,-500.0,0.00042739,31]
[312441024,1705876461733,-500.0,0.00042739,31]
[312441025,1705876461763,-508.85,0.00042739,31]
[312441026,1705876461792,-608.21,0.00042739,31]
[312441027,1705876461820,-579.63,0.00042739,31]
[312441028,1705876461851,-500.0,0.00042739,31]
[312441029,1705876461882,-631.82,0.00042739,31]
[312441030,1705876461912,-500.0,0.00042739,31]
[312441031,1705876461940,-500.0,0.00042739,31]
[312441032,1705876461971,-691.35,0.00042739,31]
[312441033,1705876462006,-500.0,0.00042739,31]
[312441034,1705876462034,-571.31,0.00042739,31]
[312441035,1705876462071,-500.0,0.00042739,31]
[312441036,1705876462100,-500.0,0.00042739,31]
[312441037,1705876462133,-500.0,0.00042739,31]
[312441038,1705876462163,-598.31,0.00042739,31]
[312441039,1705876462193,-500.0,0.00042739,31]
[312441040,1705876462223,-568.0,0.00042739,31]
[312441041,1705876462254,-578.79,0.00042739,31]
[312441042,1705876462285,-500.0,0.00042739,31]
[312441043,1705876462312,-500.0,0.00042739,31]
[312441044,1705876462341,-533.6,0.00042739,31]
[312441045,1705876462369,-500.0,0.00042739,31]
[312441046,1705876462397,-785.88,0.00042739,31]
[312441047,1705876462425,-500.0,0.00042739,31]
[312441048,1705876462453,-500.0,0.00042739,31]
[312441049,1705876462480,-529.13,0.00042739,31]
[312441050,1705876462507,-672.41,0.00042739,31]
[312441051,1705876462534,-500.0,0.00042739,31]
[312441052,1705876462562,-1247.62,0.00042739,31]
[312441053,1705876462591,-1000.0,0.00042739,31]
[312441054,1705876462618,-500.0,0.00042739,31]
[312441055,1705876462646,-701.01,0.00042739,31]
[312441056,1705876462673,-274.09358966,0.00042739,31]
[312441057,1705876462701,-500.0,0.00042739,31]
[312441058,1705876462728,-946.03,0.00042739,31]
[312441059,1705876462756,-500.0,0.00042739,31]
[312441060,1705876462783,-500.0,0.00042739,31]
[312441061,1705876462811,-793.65,0.00042739,31]
[312441062,1705876462839,-990.74,0.00042739,31]
[312441063,1705876462867,-877.0,0.00042739,31]
[312441064,1705876462898,-500.0,0.00042739,31]
[312441065,1705876462925,-500.0,0.00042739,31]
[312441066,1705876462952,-793.7,0.00042739,31]
[312441067,1705876463303,-500.0,0.00042739,31]
[312441068,1705876463333,-370.32841997,0.00042739,31]
[312441069,1705876463362,-541.02,0.00042739,31]
[312441070,1705876463390,-782.88,0.00042739,31]
[312441071,1705876463420,-812.33,0.00042739,31]
[312441072,1705876463447,-885.09,0.00042739,31]
[312441073,1705876463475,-500.0,0.00042739,31]
[312441074,1705876463502,-500.0,0.00042739,31]
[312441075,1705876463528,-500.0,0.00042739,31]
[312441076,1705876463558,-1025.68,0.00042739,31]
[312441077,1705876463585,-500.0,0.00042739,31]
[312441078,1705876463616,-167.67743675,0.00042739,31]
[312441079,1705876463647,-500.0,0.00042739,31]
[312441080,1705876463675,-730.86,0.00042739,31]
[312441081,1705876463702,-500.0,0.00042739,31]
[312441082,1705876463729,-500.0,0.00042739,30]
[312441083,1705876463757,-500.0,0.00042739,31]
[312441084,1705876463785,-582.85,0.00042739,31]
[312441085,1705876463813,-864.2,0.00042739,31]
[312441086,1705876463840,-500.0,0.00042739,31]
[312441087,1705876463867,-500.0,0.00042739,31]
[312441088,1705876463895,-500.0,0.00042739,31]
[312441089,1705876463924,-500.0,0.00042739,31]
[312441090,1705876463954,-500.0,0.00042739,31]
[312441091,1705876463985,-777.61,0.00042739,31]
[312441092,1705876464014,-500.0,0.00042739,31]
[312441093,1705876464046,-500.0,0.00042739,31]
[312441094,1705876464080,-500.0,0.00042739,31]
[312441095,1705876464110,-500.0,0.00042739,31]
[312441096,1705876464137,-500.0,0.00042739,31]
[312441097,1705876464166,-243.52,0.00042739,31]
[312441098,1705876464195,-1284.57,0.00042739,31]
[312441099,1705876464223,-1369.47,0.00042739,31]
[312441100,1705876464252,-500.0,0.00042739,31]
[312441101,1705876464280,-607.98,0.00042739,31]
[312441102,1705876464309,-935.41,0.00042739,31]
[312441103,1705876464337,-505.47,0.00042739,31]
[312441104,1705876464367,-551.0,0.00042739,31]
[312441105,1705876464398,-806.13,0.00042739,31]
[312441106,1705876464428,-500.0,0.00042739,31]
[312441107,1705876464457,-372.3807972,0.00042739,31]
[312441108,1705876464487,-798.96,0.00042739,31]
[312441109,1705876464517,-500.0,0.00042739,31]
[312441110,1705876464546,-500.0,0.00042739,31]
[312441111,1705876464576,-500.0,0.00042739,31]
[312441112,1705876464605,-500.0,0.00042739,31]
[312441113,1705876464634,-500.0,0.00042739,31]
[312441114,1705876464664,-590.77,0.00042739,31]
[312441115,1705876464692,-500.0,0.00042739,31]
[312441116,1705876464720,-707.32,0.00042739,31]
[312441117,1705876464750,-939.62,0.00042739,31]
[312441118,1705876464779,-1811.75,0.00042739,31]
[312441119,1705876464807,-500.0,0.00042739,31]
[312441120,1705876464835,-500.0,0.00042739,31]
[312441121,1705876464865,-500.0,0.00042739,31]
[312441122,1705876464894,-500.0,0.00042739,31]
[312441123,1705876464923,-350.14,0.00042739,31]
[312441124,1705876464951,-500.0,0.00042739,31]
[312441125,1705876464983,-500.0,0.00042739,31]
[312441126,1705876465011,-1072.0,0.00042739,31]
[312441127,1705876465042,-552.64,0.00042739,31]
[312441128,1705876465071,-500.0,0.00042739,31]
[312441129,1705876465100,-500.0,0.00042739,31]
[312441130,1705876465129,-805.58,0.00042739,31]
[312441131,1705876465158,-506.95,0.00042739,31]
[312441132,1705876465187,-605.93,0.00042739,31]
[312441133,1705876465220,-500.0,0.00042739,31]
[312441134,1705876465249,-272.59,0.00042739,31]
[312441135,1705876465282,-500.0,0.00042739,31]
[312441136,1705876465319,-1097.88,0.00042739,31]
[312441137,1705876465349,-268.08,0.00042739,30]
[312441138,1705876465379,-500.0,0.00042739,31]
[312441139,1705876465482,-500.0,0.00042739,31]
[312441140,1705876465514,-845.1,0.00042739,31]
[312441141,1705876465544,-500.0,0.00042739,31]
[312441142,1705876465572,-500.0,0.00042739,31]
[312441143,1705876465602,-521.41,0.00042739,31]
[312441144,1705876465631,-788.32,0.00042739,31]
[312441145,1705876465661,-720.24,0.00042739,31]
[312441146,1705876465690,-500.0,0.00042739,31]
[312441147,1705876465722,-518.74,0.00042739,31]
[312441148,1705876465752,-500.0,0.00042739,31]
[312441149,1705876465782,-500.0,0.00042739,31]
[312441150,1705876465811,-500.0,0.00042739,31]
[312441151,1705876465841,-500.0,0.00042739,31]
[312441152,1705876465869,-500.0,0.00042739,31]
[312441153,1705876465899,-1173.58,0.00042739,31]
[312441154,1705876465927,-810.11,0.00042739,31]
[312441155,1705876465956,-547.76,0.00042739,31]
[312441156,1705876465989,-500.0,0.00042739,31]
[312441157,1705876466018,-898.08,0.00042739,31]
[312441158,1705876466048,-500.0,0.00042739,31]
[312441159,1705876466080,-1249.82,0.00042739,31]
[312441160,1705876466108,-500.0,0.00042739,31]
[312441161,1705876466138,-644.21,0.00042739,31]
[312441162,1705876466173,-598.75,0.00042739,31]
[312441163,1705876466203,-500.0,0.00042739,31]
[312441164,1705876466233,-1092.57,0.00042739,31]
[312441165,1705876466262,-1011.23,0.00042739,31]
[312441166,1705876466292,-860.96,0.00042739,31]
[312441167,1705876466322,-500.0,0.00042739,31]
[312441168,1705876466350,-500.0,0.00042739,31]
[312441169,1705876466379,-500.0,0.00042739,31]
[312441170,1705876466407,-1118.43,0.00042739,31]
[312441171,1705876466435,-749.11,0.00042739,31]
[312441172,1705876466466,-500.0,0.00042739,31]
[312441173,1705876466493,-731.16,0.00042739,31]
[312441174,1705876466523,-723.92,0.00042739,31]
[312441175,1705876466551,-500.0,0.00042739,31]
[312441176,1705876466579,-500.0,0.00042739,31]
[312441177,1705876466607,-500.0,0.00042739,31]
[312441178,1705876466635,-500.0,0.00042739,31]
[312441179,1705876466664,-500.0,0.00042739,31]
[312441180,1705876466692,-500.0,0.00042739,31]
[312441181,1705876466719,-654.99,0.00042739,31]
[312441182,1705876466748,-1172.22,0.00042739,31]
[312441183,1705876466779,-505.63895377,0.00042739,31]
[312441184,1705876466807,-1046.22,0.00042739,31]
[312441185,1705876466834,-500.0,0.00042739,31]
[312441186,1705876466862,-785.66,0.00042739,31]
[312441187,1705876466889,-500.0,0.00042739,31]
[312441188,1705876466918,-643.91,0.00042739,31]
[312441189,1705876466945,-500.0,0.00042739,31]
[312441190,1705876466973,-625.11593389,0.00042739,31]
[312441191,1705876467006,-501.64,0.00042739,31]
[312441192,1705876467033,-500.0,0.00042739,31]
[312441193,1705876467062,-500.0,0.00042739,31]
[312441194,1705876467093,-500.0,0.00042739,31]
[312441195,1705876467121,-562.71,0.00042739,31]
[312441196,1705876467150,-552.21,0.00042739,31]
[312441197,1705876467178,-500.0,0.00042739,31]
[312441198,1705876467206,-500.0,0.00042739,31]
[312441199,1705876467242,-708.83,0.00042739,31]
[312441200,1705876467270,-500.0,0.00042739,31]
[312441201,1705876467299,-500.0,0.00042739,31]
[312441202,1705876467328,-1106.03,0.00042739,31]
[312441203,1705876467356,-645.89,0.00042739,31]
[312441204,1705876467383,-500.0,0.00042739,31]
[312441205,1705876467410,-500.0,0.00042739,31]
[312441206,1705876467437,-646.94,0.00042739,31]
[312441207,1705876467463,-500.0,0.00042739,31]
[312441208,1705876467489,-500.0,0.00042739,31]
[312441209,1705876467516,-500.0,0.00042739,31]
[312441210,1705876467546,-500.0,0.00042739,31]
[312441211,1705876467572,-500.0,0.00042739,31]
[312441212,1705876467599,-2098.17,0.00042739,31]
[312441213,1705876467626,-165.24,0.00042739,31]
[312441214,1705876467653,-941.47,0.00042739,31]
[312441215,1705876467680,-500.0,0.00042739,31]
[312441216,1705876467708,-797.7,0.00042739,31]
[312441217,1705876467734,-635.48,0.00042739,31]
[312441218,1705876467762,-1769.8,0.00042739,31]
[312441219,1705876467790,-581.22,0.00042739,31]
[312441220,1705876467817,-1092.51,0.00042739,31]
[312441221,1705876467847,-500.0,0.00042739,31]
[312441222,1705876467877,-4348.24,0.00042739,31]
[312441223,1705876467907,-1051.73,0.00042739,31]
[312441224,1705876467937,-1382.88,0.00042739,31]
[312441225,1705876467966,-1951.96,0.00042739,31]
[312441226,1705876467999,-611.42,0.00042739,31]
[312441227,1705876468033,-500.0,0.00042739,31]
[312441228,1705876468063,-992.54,0.00042739,31]
[312441229,1705876468091,-500.0,0.00042739,31]
[312441230,1705876468119,-500.18,0.00042739,31]
[312441231,1705876468146,-500.0,0.00042739,31]
[312441232,1705876468173,-565.87,0.00042739,31]
[312441233,1705876468203,-3573.17,0.00042739,31]
[312441234,1705876468234,-1928.6,0.00042739,31]
[312441235,1705876468264,-818.93,0.00042739,31]
[312441236,1705876468294,-500.0,0.00042739,31]
[312441237,1705876468322,-500.0,0.00042739,31]
[312441238,1705876468349,-588.35,0.00042739,31]
[312441239,1705876468381,-709.96,0.00042739,31]
[312441240,1705876468410,-500.0,0.00042739,31]
[312441241,1705876468440,-965.79,0.00042739,31]
[312441242,1705876468467,-500.0,0.00042739,31]
[312441243,1705876468497,-1343.07,0.00042739,31]
[312441244,1705876468663,-500.0,0.00042739,31]
[312441245,1705876468691,-679.91,0.00042739,31]
[312441246,1705876468721,-1416.26,0.00042739,31]
[312441247,1705876468752,-500.0,0.00042739,31]
[312441248,1705876468783,-826.78,0.00042739,31]
[312441249,1705876468816,-2857.78,0.00042739,31]
[312441250,1705876468844,-394.68132146,0.00042739,31]
[312441251,1705876468874,-1362.86,0.00042739,31]
[312441252,1705876468902,-1330.2,0.00042739,31]
[312441253,1705876468930,-726.4,0.00042739,31]
[312441254,1705876468958,-500.0,0.00042739,31]
[312441255,1705876468987,-1641.3,0.00042739,31]
[312441256,1705876469018,-550.18,0.00042739,31]
[312441257,1705876469049,-500.0,0.00042739,31]
[312441258,1705876469080,-1310.01,0.00042739,31]
[312441259,1705876469108,-562.4,0.00042739,31]
[312441260,1705876469137,-1798.01,0.00042739,31]
[312441261,1705876469166,-13031.87,0.00042739,31]
[312441262,1705876469197,-500.0,0.00042739,31]
[312441263,1705876469226,-500.0,0.00042739,31]
[312441264,1705876469254,-1072.37,0.00042739,31]
[312441265,1705876469282,-1085.7,0.00042739,31]
[312441266,1705876469309,-561.03,0.00042739,31]
[312441267,1705876469337,-500.0,0.00042739,31]
[312441268,1705876469365,-2165.18,0.00042739,31]
[312441269,1705876469393,-8214.94,0.00042739,31]